[Event "Titled Tuesday Blitz August 15 Early 2023"]
[White "Schachpanda_Youtube"]
[Black "KorolDimitriy75"]
[WhiteElo "2240"]
[BlackElo "2400"]
[Result "0-1"]
[Round "3"]
[TimeControl "180+1"]
[Date "2023.08.15"]
[WhiteClock "0:00:15"]
[BlackClock "0:00:15"]
[Board "210"]

1. e4 {[%clk 0:03:00]}  c5 {[%clk 0:02:59]} 2. d4 {[%clk 0:03:00]}  cxd4 {[%clk 0:02:59]} 3. c3 {[%clk 0:03:01]}  d5 {[%clk 0:02:59]} 4. exd5 {[%clk 0:03:01]}  Qxd5 {[%clk 0:03:00]} 5. cxd4 {[%clk 0:03:01]}  Nc6 {[%clk 0:03:00]} 6. Nf3 {[%clk 0:03:01]}  e5 {[%clk 0:03:00]} 7. Nc3 {[%clk 0:03:00]}  Bb4 {[%clk 0:03:00]} 8. Bd2 {[%clk 0:02:59]}  Bxc3 {[%clk 0:03:00]} 9. Bxc3 {[%clk 0:02:58]}  e4 {[%clk 0:03:01]} 10. Nd2 {[%clk 0:02:58]}  Nf6 {[%clk 0:02:58]} 11. Bc4 {[%clk 0:02:57]}  Qg5 {[%clk 0:02:57]} 12. Qb3 {[%clk 0:02:30]}  O-O {[%clk 0:02:48]} 13. O-O-O {[%clk 0:02:26]}  a6 {[%clk 0:01:16]} 14. h4 {[%clk 0:02:22]}  Qf5 {[%clk 0:01:04]} 15. d5 {[%clk 0:02:12]}  Ne5 {[%clk 0:01:02]} 16. Be2 {[%clk 0:01:46]}  b5 {[%clk 0:00:46]} 17. g4 {[%clk 0:01:37]}  Nfxg4 {[%clk 0:00:35]} 18. Rdg1 {[%clk 0:01:21]}  h5 {[%clk 0:00:26]} 19. d6 {[%clk 0:00:44]}  Be6 {[%clk 0:00:23]} 20. Qc2 {[%clk 0:00:41]}  Bd5 {[%clk 0:00:20]} 21. Nf1 {[%clk 0:00:36]}  Qxf2 {[%clk 0:00:17]} 22. Bxe5 {[%clk 0:00:26]}  Nxe5 {[%clk 0:00:16]} 23. Bxh5 {[%clk 0:00:15]}  Rfc8 {[%clk 0:00:15]} 0-1


[Site "https://www.chess.com"]

[Event "Titled Tuesday Blitz August 15 Early 2023"]
[White "Rivas Garcia, Victor"]
[Black "Lorenzo De La Riva, Lazaro"]
[WhiteFideId "2217740"]
[BlackFideId "2268809"]
[WhiteElo "2237"]
[BlackElo "2399"]
[Result "0-1"]
[Round "3"]
[TimeControl "180+1"]
[Date "2023.08.15"]
[WhiteClock "0:00:07"]
[BlackClock "0:00:35"]
[Board "211"]

1. e4 {[%clk 0:03:00]}  Nc6 {[%clk 0:02:59]} 2. Nf3 {[%clk 0:02:59]}  d6 {[%clk 0:02:57]} 3. d4 {[%clk 0:02:59]}  e5 {[%clk 0:02:56]} 4. Bb5 {[%clk 0:02:54]}  Bd7 {[%clk 0:02:55]} 5. Nc3 {[%clk 0:02:53]}  Nf6 {[%clk 0:02:46]} 6. O-O {[%clk 0:02:51]}  Be7 {[%clk 0:02:46]} 7. Re1 {[%clk 0:02:51]}  exd4 {[%clk 0:02:45]} 8. Nxd4 {[%clk 0:02:50]}  O-O {[%clk 0:02:45]} 9. h3 {[%clk 0:02:43]}  Re8 {[%clk 0:02:10]} 10. Bxc6 {[%clk 0:02:38]}  bxc6 {[%clk 0:02:10]} 11. Qf3 {[%clk 0:02:38]}  c5 {[%clk 0:01:54]} 12. Nf5 {[%clk 0:02:35]}  Bxf5 {[%clk 0:01:54]} 13. Qxf5 {[%clk 0:02:33]}  Nd7 {[%clk 0:01:54]} 14. Nd5 {[%clk 0:02:30]}  Bf6 {[%clk 0:01:54]} 15. Nxf6+ {[%clk 0:02:27]}  Nxf6 {[%clk 0:01:51]} 16. Bg5 {[%clk 0:02:22]}  Re5 {[%clk 0:01:49]} 17. Bxf6 {[%clk 0:02:21]}  gxf6 {[%clk 0:01:43]} 18. Qf4 {[%clk 0:02:12]}  Qe7 {[%clk 0:01:37]} 19. Kf1 {[%clk 0:01:54]}  Rb8 {[%clk 0:01:31]} 20. b3 {[%clk 0:01:53]}  Re8 {[%clk 0:01:32]} 21. f3 {[%clk 0:01:34]}  Kh8 {[%clk 0:01:13]} 22. Qg3 {[%clk 0:01:25]}  Rg8 {[%clk 0:01:11]} 23. Qf4 {[%clk 0:01:23]}  Reg5 {[%clk 0:01:07]} 24. Re2 {[%clk 0:01:22]}  Qe5 {[%clk 0:01:06]} 25. Qxe5 {[%clk 0:01:19]}  fxe5 {[%clk 0:01:07]} 26. a4 {[%clk 0:01:13]}  a5 {[%clk 0:01:06]} 27. Rd1 {[%clk 0:01:11]}  Kg7 {[%clk 0:01:04]} 28. g4 {[%clk 0:01:02]}  Kf6 {[%clk 0:01:04]} 29. h4 {[%clk 0:00:59]}  R5g7 {[%clk 0:01:03]} 30. Red2 {[%clk 0:00:57]}  h5 {[%clk 0:01:01]} 31. g5+ {[%clk 0:00:57]}  Ke6 {[%clk 0:01:01]} 32. Rf2 {[%clk 0:00:56]}  Rg6 {[%clk 0:00:59]} 33. Rd5 {[%clk 0:00:50]}  f6 {[%clk 0:00:57]} 34. f4 {[%clk 0:00:47]}  exf4 {[%clk 0:00:56]} 35. Rxf4 {[%clk 0:00:45]}  fxg5 {[%clk 0:00:56]} 36. hxg5 {[%clk 0:00:28]}  Rxg5 {[%clk 0:00:57]} 37. Rxg5 {[%clk 0:00:25]}  Rxg5 {[%clk 0:00:58]} 38. Ke2 {[%clk 0:00:25]}  Rg4 {[%clk 0:00:40]} 39. Rf8 {[%clk 0:00:13]}  Rxe4+ {[%clk 0:00:40]} 40. Kf3 {[%clk 0:00:13]}  Rh4 {[%clk 0:00:35]} 41. Ra8 {[%clk 0:00:11]}  Rh2 {[%clk 0:00:35]} 42. Rxa5 {[%clk 0:00:07]}  Rxc2 {[%clk 0:00:35]} 0-1


[Site "https://www.chess.com"]

[Event "Titled Tuesday Blitz August 15 Early 2023"]
[White "Luxama, Jacques Muller"]
[Black "Namitbir Singh Walia"]
[WhiteFideId "11900113"]
[BlackFideId "35071068"]
[WhiteElo "2229"]
[BlackElo "2399"]
[Result "0-1"]
[Round "3"]
[TimeControl "180+1"]
[Date "2023.08.15"]
[WhiteClock "0:00:34"]
[BlackClock "0:00:10"]
[Board "212"]

1. e4 {[%clk 0:02:59]}  c5 {[%clk 0:03:00]} 2. Nf3 {[%clk 0:02:58]}  Nc6 {[%clk 0:02:59]} 3. c3 {[%clk 0:02:56]}  d5 {[%clk 0:02:56]} 4. exd5 {[%clk 0:02:56]}  Qxd5 {[%clk 0:02:57]} 5. d4 {[%clk 0:02:57]}  Nf6 {[%clk 0:02:56]} 6. Na3 {[%clk 0:02:56]}  e6 {[%clk 0:02:51]} 7. Nb5 {[%clk 0:02:53]}  Qd8 {[%clk 0:02:49]} 8. Bf4 {[%clk 0:02:51]}  Nd5 {[%clk 0:02:48]} 9. Bg3 {[%clk 0:02:51]}  a6 {[%clk 0:02:43]} 10. c4 {[%clk 0:02:51]}  axb5 {[%clk 0:02:41]} 11. cxd5 {[%clk 0:02:51]}  Qxd5 {[%clk 0:02:39]} 12. Bxb5 {[%clk 0:02:50]}  cxd4 {[%clk 0:02:39]} 13. Nxd4 {[%clk 0:02:45]}  Bb4+ {[%clk 0:02:37]} 14. Kf1 {[%clk 0:02:45]}  O-O {[%clk 0:02:32]} 15. Bxc6 {[%clk 0:02:45]}  bxc6 {[%clk 0:02:32]} 16. Nc2 {[%clk 0:02:42]}  Qb5+ {[%clk 0:01:39]} 17. Kg1 {[%clk 0:02:41]}  Be7 {[%clk 0:01:36]} 18. b3 {[%clk 0:02:39]}  Bf6 {[%clk 0:01:35]} 19. Rb1 {[%clk 0:02:24]}  Rd8 {[%clk 0:01:32]} 20. Qc1 {[%clk 0:02:10]}  Rxa2 {[%clk 0:01:30]} 21. h4 {[%clk 0:02:08]}  Qh5 {[%clk 0:00:43]} 22. Kh2 {[%clk 0:01:52]}  e5 {[%clk 0:00:20]} 23. Re1 {[%clk 0:01:45]}  Bxh4 {[%clk 0:00:17]} 24. Bxh4 {[%clk 0:01:44]}  Qxh4+ {[%clk 0:00:17]} 25. Kg1 {[%clk 0:01:45]}  Bf5 {[%clk 0:00:16]} 26. Re2 {[%clk 0:01:36]}  Bg4 {[%clk 0:00:14]} 27. f3 {[%clk 0:01:34]}  Bf5 {[%clk 0:00:14]} 28. Ra1 {[%clk 0:01:26]}  Rxa1 {[%clk 0:00:12]} 29. Nxa1 {[%clk 0:01:25]}  Qd4+ {[%clk 0:00:11]} 30. Kh2 {[%clk 0:01:22]}  c5 {[%clk 0:00:10]} 31. Nc2 {[%clk 0:01:22]}  Qd6 {[%clk 0:00:10]} 32. Ne3 {[%clk 0:01:20]}  Bd3 {[%clk 0:00:10]} 33. Rd2 {[%clk 0:01:17]}  e4+ {[%clk 0:00:11]} 34. Kg1 {[%clk 0:01:16]}  exf3 {[%clk 0:00:11]} 35. gxf3 {[%clk 0:01:10]}  Qd4 {[%clk 0:00:12]} 36. Rf2 {[%clk 0:01:09]}  h6 {[%clk 0:00:11]} 37. Ng4 {[%clk 0:01:07]}  Bf5 {[%clk 0:00:10]} 38. Ne3 {[%clk 0:01:07]}  Be6 {[%clk 0:00:10]} 39. Nc4 {[%clk 0:01:06]}  Ra8 {[%clk 0:00:10]} 40. Kg2 {[%clk 0:01:05]}  Ra1 {[%clk 0:00:11]} 41. Qd2 {[%clk 0:01:05]}  Qh4 {[%clk 0:00:10]} 42. Qd8+ {[%clk 0:00:36]}  Qxd8 {[%clk 0:00:09]} 43. Rd2 {[%clk 0:00:36]}  Qg5+ {[%clk 0:00:09]} 44. Kf2 {[%clk 0:00:36]}  Qg1+ {[%clk 0:00:10]} 45. Ke2 {[%clk 0:00:36]}  Qf1+ {[%clk 0:00:10]} 46. Ke3 {[%clk 0:00:36]}  Re1+ {[%clk 0:00:09]} 47. Kf4 {[%clk 0:00:35]}  Bxc4 {[%clk 0:00:09]} 48. Rd8+ {[%clk 0:00:33]}  Kh7 {[%clk 0:00:09]} 49. bxc4 {[%clk 0:00:34]}  g5+ {[%clk 0:00:10]} 50. Kf5 {[%clk 0:00:34]}  Qxf3# {[%clk 0:00:10]} 0-1


[Site "https://www.chess.com"]

[Event "Titled Tuesday Blitz August 15 Early 2023"]
[White "Hoffmann, Asa"]
[Black "Vaglio Munoz, Jaime"]
[WhiteFideId "2001470"]
[BlackFideId "6500145"]
[WhiteElo "2397"]
[BlackElo "2222"]
[Result "1-0"]
[Round "3"]
[TimeControl "180+1"]
[Date "2023.08.15"]
[WhiteClock "0:00:18"]
[BlackClock "0:00:45"]
[Board "213"]

1. d4 {[%clk 0:02:54]}  c5 {[%clk 0:02:57]} 2. dxc5 {[%clk 0:02:53]}  e5 {[%clk 0:02:56]} 3. Nc3 {[%clk 0:02:52]}  Bxc5 {[%clk 0:02:56]} 4. Ne4 {[%clk 0:02:52]}  d5 {[%clk 0:02:55]} 5. Nxc5 {[%clk 0:02:51]}  Qa5+ {[%clk 0:02:55]} 6. c3 {[%clk 0:02:47]}  Qxc5 {[%clk 0:02:56]} 7. Nf3 {[%clk 0:02:37]}  Nc6 {[%clk 0:02:54]} 8. g3 {[%clk 0:02:28]}  Nf6 {[%clk 0:02:52]} 9. Bg2 {[%clk 0:02:28]}  O-O {[%clk 0:02:52]} 10. O-O {[%clk 0:02:28]}  Bg4 {[%clk 0:02:52]} 11. h3 {[%clk 0:02:26]}  Bh5 {[%clk 0:02:50]} 12. Qb3 {[%clk 0:02:22]}  b5 {[%clk 0:02:48]} 13. Be3 {[%clk 0:02:19]}  d4 {[%clk 0:02:46]} 14. cxd4 {[%clk 0:02:17]}  exd4 {[%clk 0:02:40]} 15. Rac1 {[%clk 0:02:11]}  Qb6 {[%clk 0:02:15]} 16. Rxc6 {[%clk 0:02:09]}  Qxc6 {[%clk 0:02:14]} 17. Nxd4 {[%clk 0:02:09]}  Qb6 {[%clk 0:02:11]} 18. Bxa8 {[%clk 0:02:03]}  Rxa8 {[%clk 0:02:12]} 19. Nxb5 {[%clk 0:01:53]}  Qb7 {[%clk 0:02:07]} 20. Nc3 {[%clk 0:01:50]}  Qa6 {[%clk 0:02:05]} 21. g4 {[%clk 0:01:41]}  Bg6 {[%clk 0:02:03]} 22. Rd1 {[%clk 0:01:35]}  h5 {[%clk 0:02:02]} 23. g5 {[%clk 0:01:33]}  Ne4 {[%clk 0:02:01]} 24. Qd5 {[%clk 0:01:02]}  Re8 {[%clk 0:01:57]} 25. Nxe4 {[%clk 0:01:01]}  Rxe4 {[%clk 0:01:53]} 26. Rd2 {[%clk 0:00:45]}  Qc8 {[%clk 0:01:52]} 27. Qd8+ {[%clk 0:00:42]}  Qxd8 {[%clk 0:01:50]} 28. Rxd8+ {[%clk 0:00:42]}  Kh7 {[%clk 0:01:51]} 29. Rd7 {[%clk 0:00:38]}  Ra4 {[%clk 0:01:50]} 30. a3 {[%clk 0:00:38]}  a6 {[%clk 0:01:49]} 31. Kg2 {[%clk 0:00:37]}  h4 {[%clk 0:01:48]} 32. f3 {[%clk 0:00:37]}  Rc4 {[%clk 0:01:44]} 33. Rd4 {[%clk 0:00:36]}  Rc2 {[%clk 0:01:43]} 34. Rxh4+ {[%clk 0:00:36]}  Kg8 {[%clk 0:01:43]} 35. Rb4 {[%clk 0:00:34]}  Bd3 {[%clk 0:01:42]} 36. Kg3 {[%clk 0:00:33]}  Bxe2 {[%clk 0:01:41]} 37. Bd4 {[%clk 0:00:32]}  Kh7 {[%clk 0:01:40]} 38. Rb7 {[%clk 0:00:30]}  Kg6 {[%clk 0:01:39]} 39. h4 {[%clk 0:00:31]}  Bf1 {[%clk 0:01:37]} 40. h5+ {[%clk 0:00:30]}  Kxh5 {[%clk 0:01:37]} 41. Rxf7 {[%clk 0:00:29]}  Kg6 {[%clk 0:01:35]} 42. Rxg7+ {[%clk 0:00:29]}  Kf5 {[%clk 0:01:34]} 43. Rf7+ {[%clk 0:00:29]}  Kxg5 {[%clk 0:01:33]} 44. f4+ {[%clk 0:00:28]}  Kg6 {[%clk 0:01:33]} 45. Rf6+ {[%clk 0:00:28]}  Kh5 {[%clk 0:01:32]} 46. f5 {[%clk 0:00:28]}  Rc4 {[%clk 0:01:29]} 47. Bc3 {[%clk 0:00:26]}  Rg4+ {[%clk 0:01:25]} 48. Kf3 {[%clk 0:00:26]}  Bg2+ {[%clk 0:01:22]} 49. Ke3 {[%clk 0:00:26]}  Re4+ {[%clk 0:01:20]} 50. Kd3 {[%clk 0:00:26]}  Kg4 {[%clk 0:01:20]} 51. Rg6+ {[%clk 0:00:25]}  Kxf5 {[%clk 0:01:16]} 52. Rxg2 {[%clk 0:00:25]}  Re6 {[%clk 0:01:13]} 53. Rf2+ {[%clk 0:00:25]}  Kg4 {[%clk 0:01:13]} 54. Bd4 {[%clk 0:00:24]}  Rd6 {[%clk 0:01:11]} 55. Rf6 {[%clk 0:00:24]}  Rd5 {[%clk 0:01:10]} 56. Rxa6 {[%clk 0:00:23]}  Kf4 {[%clk 0:01:10]} 57. b4 {[%clk 0:00:23]}  Rd8 {[%clk 0:01:05]} 58. Rf6+ {[%clk 0:00:22]}  Kg5 {[%clk 0:00:52]} 59. a4 {[%clk 0:00:22]}  Ra8 {[%clk 0:00:50]} 60. a5 {[%clk 0:00:22]}  Kg4 {[%clk 0:00:47]} 61. a6 {[%clk 0:00:21]}  Kg5 {[%clk 0:00:46]} 62. a7 {[%clk 0:00:21]}  Rxa7 {[%clk 0:00:45]} 63. Bxa7 {[%clk 0:00:20]}  Kxf6 {[%clk 0:00:46]} 64. Kd4 {[%clk 0:00:20]}  Ke6 {[%clk 0:00:47]} 65. Kc5 {[%clk 0:00:20]}  Kd7 {[%clk 0:00:48]} 66. Kb6 {[%clk 0:00:20]}  Kc8 {[%clk 0:00:48]} 67. b5 {[%clk 0:00:20]}  Kd8 {[%clk 0:00:47]} 68. Kb7 {[%clk 0:00:20]}  Kd7 {[%clk 0:00:48]} 69. Bc5 {[%clk 0:00:20]}  Ke6 {[%clk 0:00:47]} 70. Kc7 {[%clk 0:00:20]}  Kd5 {[%clk 0:00:48]} 71. b6 {[%clk 0:00:20]}  Kxc5 {[%clk 0:00:49]} 72. b7 {[%clk 0:00:21]}  Kb5 {[%clk 0:00:49]} 73. b8=Q+ {[%clk 0:00:20]}  Kc5 {[%clk 0:00:50]} 74. Qb2 {[%clk 0:00:19]}  Kc4 {[%clk 0:00:49]} 75. Kd6 {[%clk 0:00:19]}  Kd3 {[%clk 0:00:48]} 76. Kd5 {[%clk 0:00:19]}  Ke3 {[%clk 0:00:48]} 77. Qc3+ {[%clk 0:00:18]}  Kf4 {[%clk 0:00:48]} 78. Qd3 {[%clk 0:00:18]}  Kg4 {[%clk 0:00:47]} 79. Qe3 {[%clk 0:00:18]}  Kf5 {[%clk 0:00:46]} 80. Qf3+ {[%clk 0:00:19]}  Kg6 {[%clk 0:00:46]} 81. Ke5 {[%clk 0:00:18]}  Kg5 {[%clk 0:00:46]} 82. Qg3+ {[%clk 0:00:18]}  Kh6 {[%clk 0:00:45]} 83. Kf6 {[%clk 0:00:18]}  Kh7 {[%clk 0:00:45]} 84. Qg7# {[%clk 0:00:18]} 1-0


[Site "https://www.chess.com"]

[Event "Titled Tuesday Blitz August 15 Early 2023"]
[White "Fernandez Garcia, Gumersindo"]
[Black "Fernandez Hernandez, Gerardo"]
[WhiteFideId "24516740"]
[BlackFideId "2207400"]
[WhiteElo "2393"]
[BlackElo "2218"]
[Result "1-0"]
[Round "3"]
[TimeControl "180+1"]
[Date "2023.08.15"]
[WhiteClock "0:00:46"]
[BlackClock "0:00:00"]
[Board "214"]

1. e4 {[%clk 0:03:00]}  e6 {[%clk 0:02:58]} 2. d4 {[%clk 0:03:00]}  d5 {[%clk 0:02:58]} 3. Bd3 {[%clk 0:03:00]}  c5 {[%clk 0:02:57]} 4. exd5 {[%clk 0:02:58]}  exd5 {[%clk 0:02:57]} 5. dxc5 {[%clk 0:02:58]}  Bxc5 {[%clk 0:02:56]} 6. Nf3 {[%clk 0:02:58]}  Ne7 {[%clk 0:02:53]} 7. O-O {[%clk 0:02:53]}  h6 {[%clk 0:02:52]} 8. Nc3 {[%clk 0:02:48]}  Nbc6 {[%clk 0:02:48]} 9. a3 {[%clk 0:02:39]}  Bg4 {[%clk 0:02:45]} 10. h3 {[%clk 0:02:39]}  Bh5 {[%clk 0:02:45]} 11. Re1 {[%clk 0:02:36]}  O-O {[%clk 0:02:44]} 12. b4 {[%clk 0:02:31]}  Bd4 {[%clk 0:02:28]} 13. Bb2 {[%clk 0:02:24]}  Bf6 {[%clk 0:02:11]} 14. Rb1 {[%clk 0:02:12]}  Ne5 {[%clk 0:02:03]} 15. g4 {[%clk 0:01:29]}  Nxd3 {[%clk 0:01:54]} 16. Qxd3 {[%clk 0:01:24]}  Bg6 {[%clk 0:01:53]} 17. Qd2 {[%clk 0:01:23]}  Rc8 {[%clk 0:01:37]} 18. Nd4 {[%clk 0:01:14]}  Rc4 {[%clk 0:01:20]} 19. Nce2 {[%clk 0:01:11]}  Qc8 {[%clk 0:01:02]} 20. Rbc1 {[%clk 0:01:09]}  Nc6 {[%clk 0:00:53]} 21. Nxc6 {[%clk 0:01:04]}  Qxc6 {[%clk 0:00:45]} 22. Bxf6 {[%clk 0:01:04]}  Qxf6 {[%clk 0:00:44]} 23. Qxd5 {[%clk 0:01:00]}  Rxc2 {[%clk 0:00:18]} 24. Rxc2 {[%clk 0:01:00]}  Bxc2 {[%clk 0:00:18]} 25. Ng3 {[%clk 0:01:00]}  b6 {[%clk 0:00:14]} 26. Nh5 {[%clk 0:00:59]}  Qg6 {[%clk 0:00:11]} 27. Qe5 {[%clk 0:00:56]}  Rc8 {[%clk 0:00:09]} 28. Nf4 {[%clk 0:00:51]}  Qc6 {[%clk 0:00:08]} 29. Nd5 {[%clk 0:00:51]}  Kf8 {[%clk 0:00:00]} 30. Ne7 {[%clk 0:00:46]} 1-0


[Site "https://www.chess.com"]

[Event "Titled Tuesday Blitz August 15 Early 2023"]
[White "Zaichenko, Daria"]
[Black "Cheer_Down"]
[WhiteFideId "4197453"]
[WhiteElo "2204"]
[BlackElo "2381"]
[Result "1-0"]
[Round "3"]
[TimeControl "180+1"]
[Date "2023.08.15"]
[WhiteClock "0:01:11"]
[BlackClock "0:00:52"]
[Board "217"]

1. e4 {[%clk 0:02:52]}  c5 {[%clk 0:02:56]} 2. Nf3 {[%clk 0:02:52]}  d6 {[%clk 0:02:56]} 3. d4 {[%clk 0:02:52]}  cxd4 {[%clk 0:02:56]} 4. Nxd4 {[%clk 0:02:52]}  Nf6 {[%clk 0:02:56]} 5. Nc3 {[%clk 0:02:52]}  a6 {[%clk 0:02:57]} 6. Be2 {[%clk 0:02:46]}  e5 {[%clk 0:02:56]} 7. Nb3 {[%clk 0:02:46]}  Be7 {[%clk 0:02:55]} 8. Be3 {[%clk 0:02:46]}  Be6 {[%clk 0:02:53]} 9. Qd3 {[%clk 0:02:45]}  Nc6 {[%clk 0:02:34]} 10. O-O {[%clk 0:02:29]}  d5 {[%clk 0:02:28]} 11. exd5 {[%clk 0:02:28]}  Nb4 {[%clk 0:02:28]} 12. Qd2 {[%clk 0:02:19]}  Nbxd5 {[%clk 0:02:27]} 13. Nxd5 {[%clk 0:02:19]}  Qxd5 {[%clk 0:02:27]} 14. Qxd5 {[%clk 0:02:16]}  Nxd5 {[%clk 0:02:27]} 15. Bc5 {[%clk 0:02:15]}  O-O-O {[%clk 0:02:22]} 16. c4 {[%clk 0:02:06]}  Nf4 {[%clk 0:02:22]} 17. Bf3 {[%clk 0:02:05]}  Rhe8 {[%clk 0:02:13]} 18. Bb6 {[%clk 0:01:43]}  Rd7 {[%clk 0:01:54]} 19. c5 {[%clk 0:01:39]}  Bxb3 {[%clk 0:01:44]} 20. axb3 {[%clk 0:01:39]}  f5 {[%clk 0:01:44]} 21. c6 {[%clk 0:01:38]}  bxc6 {[%clk 0:01:42]} 22. Bxc6 {[%clk 0:01:37]}  Ne2+ {[%clk 0:01:34]} 23. Kh1 {[%clk 0:01:36]}  Rd6 {[%clk 0:01:29]} 24. Bxe8 {[%clk 0:01:31]}  Rxb6 {[%clk 0:01:29]} 25. Bf7 {[%clk 0:01:28]}  Nd4 {[%clk 0:01:21]} 26. Ra5 {[%clk 0:01:21]}  Bf6 {[%clk 0:01:20]} 27. Rc1+ {[%clk 0:01:18]}  Kb7 {[%clk 0:01:16]} 28. Bd5+ {[%clk 0:01:17]}  Kb8 {[%clk 0:01:15]} 29. Rac5 {[%clk 0:01:12]}  Nb5 {[%clk 0:00:51]} 30. Rc8+ {[%clk 0:01:11]}  Ka7 {[%clk 0:00:52]} 31. Ra8# {[%clk 0:01:11]} 1-0


[Site "https://www.chess.com"]

[Event "Titled Tuesday Blitz August 15 Early 2023"]
[White "Mirzanurov, Bulat"]
[Black "Slovineanu, Viacheslav"]
[WhiteFideId "4184521"]
[BlackFideId "13900510"]
[WhiteElo "2201"]
[BlackElo "2380"]
[Result "1-0"]
[Round "3"]
[TimeControl "180+1"]
[Date "2023.08.15"]
[WhiteClock "0:00:05"]
[BlackClock "0:00:00"]
[Board "218"]

1. e4 {[%clk 0:03:00]}  c6 {[%clk 0:02:57]} 2. d4 {[%clk 0:02:56]}  d5 {[%clk 0:02:56]} 3. exd5 {[%clk 0:02:52]}  cxd5 {[%clk 0:02:57]} 4. Nf3 {[%clk 0:02:51]}  Nf6 {[%clk 0:02:57]} 5. Ne5 {[%clk 0:02:45]}  Nc6 {[%clk 0:02:52]} 6. c3 {[%clk 0:02:38]}  e6 {[%clk 0:02:38]} 7. Nd2 {[%clk 0:02:33]}  Nxe5 {[%clk 0:02:35]} 8. dxe5 {[%clk 0:02:33]}  Nd7 {[%clk 0:02:35]} 9. Nf3 {[%clk 0:02:31]}  Qc7 {[%clk 0:02:28]} 10. Bf4 {[%clk 0:02:30]}  a6 {[%clk 0:02:00]} 11. Bd3 {[%clk 0:02:17]}  h6 {[%clk 0:02:00]} 12. h4 {[%clk 0:02:13]}  b5 {[%clk 0:01:54]} 13. Qe2 {[%clk 0:01:52]}  Bb7 {[%clk 0:01:45]} 14. O-O {[%clk 0:01:39]}  Nc5 {[%clk 0:01:37]} 15. Nd4 {[%clk 0:01:30]}  Be7 {[%clk 0:01:31]} 16. h5 {[%clk 0:01:25]}  Nxd3 {[%clk 0:01:12]} 17. Qxd3 {[%clk 0:01:25]}  Qc4 {[%clk 0:01:09]} 18. Qg3 {[%clk 0:01:15]}  Bf8 {[%clk 0:01:01]} 19. b3 {[%clk 0:01:12]}  Qc7 {[%clk 0:01:00]} 20. Rac1 {[%clk 0:01:10]}  Qb6 {[%clk 0:00:41]} 21. Be3 {[%clk 0:01:05]}  Qa5 {[%clk 0:00:23]} 22. f4 {[%clk 0:00:59]}  O-O-O {[%clk 0:00:20]} 23. c4 {[%clk 0:00:56]}  dxc4 {[%clk 0:00:19]} 24. bxc4 {[%clk 0:00:56]}  Kb8 {[%clk 0:00:19]} 25. cxb5 {[%clk 0:00:55]}  axb5 {[%clk 0:00:19]} 26. Nc6+ {[%clk 0:00:53]}  Bxc6 {[%clk 0:00:18]} 27. Rxc6 {[%clk 0:00:54]}  Qxa2 {[%clk 0:00:11]} 28. Rb6+ {[%clk 0:00:51]}  Kc8 {[%clk 0:00:11]} 29. Rc1+ {[%clk 0:00:49]}  Kd7 {[%clk 0:00:11]} 30. Rxb5 {[%clk 0:00:31]}  Ke8 {[%clk 0:00:10]} 31. Qf3 {[%clk 0:00:30]}  Be7 {[%clk 0:00:09]} 32. Qc6+ {[%clk 0:00:30]}  Kf8 {[%clk 0:00:10]} 33. Rb7 {[%clk 0:00:28]}  Qe2 {[%clk 0:00:06]} 34. Bc5 {[%clk 0:00:27]}  Bxc5+ {[%clk 0:00:05]} 35. Qxc5+ {[%clk 0:00:27]}  Kg8 {[%clk 0:00:06]} 36. Qc7 {[%clk 0:00:15]}  Rf8 {[%clk 0:00:06]} 37. Ra1 {[%clk 0:00:14]}  Qe3+ {[%clk 0:00:06]} 38. Kh1 {[%clk 0:00:14]}  Qxf4 {[%clk 0:00:06]} 39. Kg1 {[%clk 0:00:10]}  Qe3+ {[%clk 0:00:05]} 40. Kh1 {[%clk 0:00:10]}  Qg5 {[%clk 0:00:04]} 41. Raa7 {[%clk 0:00:09]}  Qxh5+ {[%clk 0:00:04]} 42. Kg1 {[%clk 0:00:09]}  g5 {[%clk 0:00:03]} 43. Rb8 {[%clk 0:00:05]}  Kg7 {[%clk 0:00:03]} 44. Rxf8 {[%clk 0:00:05]}  Rxf8 {[%clk 0:00:04]} 45. Qe7 {[%clk 0:00:06]}  Qg6 {[%clk 0:00:04]} 46. Ra6 {[%clk 0:00:05]}  Rc8 {[%clk 0:00:03]} 47. Rd6 {[%clk 0:00:04]}  Rc1+ {[%clk 0:00:03]} 48. Kf2 {[%clk 0:00:05]}  Qf5+ {[%clk 0:00:03]} 49. Ke2 {[%clk 0:00:05]}  Rc2+ {[%clk 0:00:00]} 50. Kd1 {[%clk 0:00:05]} 1-0


[Site "https://www.chess.com"]